bitfinex/quotes_BTCUSD_20240721
["timestamp","ask_amount","ask_price","bid_price","bid_amount"]
[1721601326434,2.41764272,68139.0,68138.0,0.11197773]
[1721601326810,2.54760537,68139.0,68138.0,0.11097773]
[1721601326919,2.41064272,68139.0,68138.0,0.11097773]
[1721601327126,2.42264272,68139.0,68138.0,0.11197773]
[1721601327502,2.54996036,68139.0,68138.0,0.02702689]
[1721601327706,2.62945832,68139.0,68138.0,0.02702689]
[1721601327932,2.58607845,68139.0,68138.0,0.02802689]
[1721601328050,2.65157542,68139.0,68138.0,0.02802689]
[1721601328430,2.42444428,68139.0,68138.0,1e-08]
[1721601328551,2.42444428,68139.0,68124.0,0.002794]
[1721601328552,1.027519,68125.0,68124.0,0.002794]
[1721601328752,0.440373,68124.0,68123.0,0.44093655]
[1721601329001,1.17455691,68124.0,68123.0,0.29358]
[1721601329207,1.49113891,68124.0,68123.0,0.29358]
[1721601330862,1.50513891,68124.0,68123.0,0.29358]
[1721601331213,1.51813891,68124.0,68123.0,0.29358]
[1721601332476,1.51813891,68124.0,68123.0,0.294504]
[1721601333059,1.66510156,68124.0,68123.0,0.294504]
[1721601333616,1.51813891,68124.0,68123.0,0.294504]
[1721601336385,1.52726923,68124.0,68123.0,0.294504]
[1721601338086,1.23368723,68124.0,68123.0,0.294504]
[1721601338287,1.23368723,68124.0,68123.0,0.358804]
[1721601338638,1.23368723,68124.0,68123.0,0.408804]
[1721601338776,0.94010523,68124.0,68123.0,0.408804]
[1721601339626,0.91310523,68124.0,68123.0,0.408804]
[1721601339834,0.94010523,68124.0,68123.0,0.409804]
[1721601340215,0.94010523,68124.0,68123.0,0.408804]
[1721601340413,0.95210523,68124.0,68123.0,0.409804]
[1721601340626,0.48850332,68124.0,68123.0,0.459804]
[1721601340827,0.47550332,68124.0,68123.0,0.458804]
[1721601341023,0.47250332,68124.0,68123.0,0.459804]
[1721601341429,0.47250332,68124.0,68123.0,0.409804]
[1721601341430,0.48650332,68124.0,68123.0,0.409804]
[1721601341627,0.48650332,68124.0,68123.0,0.359804]
[1721601341869,0.47250332,68124.0,68123.0,0.409804]
[1721601342068,0.47250332,68124.0,68123.0,0.359804]
[1721601342069,1.33705216,68124.0,68123.0,0.359804]
[1721601342377,1.24068723,68124.0,68123.0,0.359804]
[1721601342524,1.21768723,68124.0,68123.0,0.358804]
[1721601342707,1.22568723,68124.0,68123.0,0.359804]
[1721601342915,1.21468723,68124.0,68123.0,0.359804]
[1721601343117,1.21468723,68124.0,68123.0,0.408804]
[1721601343321,0.02813032,68124.0,68123.0,0.536504]
[1721601343523,0.02013032,68124.0,68123.0,0.535504]
[1721601343728,0.011,68124.0,68123.0,0.535504]
[1721601343929,0.019,68124.0,68123.0,0.536504]
[1721601344383,0.032,68124.0,68123.0,0.536504]
[1721601344817,0.019,68124.0,68123.0,0.536504]
[1721601345173,0.026,68124.0,68123.0,0.536504]
[1721601345373,0.026,68124.0,68123.0,0.683297]
[1721601345571,0.019,68124.0,68123.0,0.65840284]
[1721601346214,0.146769,68134.0,68133.0,0.2426]
[1721601346342,0.463308,68134.0,68133.0,0.53614]
[1721601346736,0.76821416,68134.0,68133.0,0.48614]
[1721601346967,1.57851207,68134.0,68133.0,0.29354]
[1721601347165,1.38497307,68134.0,68133.0,0.29354]
[1721601347727,1.38897307,68134.0,68133.0,0.29354]
[1721601348158,1.40397307,68134.0,68133.0,0.29454]
[1721601348377,1.40397307,68134.0,68126.0,0.05]
[1721601348378,0.146791,68124.0,68123.0,0.007164]
[1721601348589,0.61039291,68124.0,68123.0,0.007164]
[1721601348797,0.146786,68127.0,68126.0,0.1263]
[1721601348999,0.146786,68127.0,68126.0,0.41987]
[1721601349223,0.463355,68127.0,68126.0,0.41987]
[1721601350680,0.760924,68127.0,68126.0,0.36987]
[1721601350884,0.90794391,68127.0,68126.0,0.29357]
[1721601351681,0.91394391,68127.0,68126.0,0.29357]
[1721601352243,1.20751291,68127.0,68126.0,0.29357]
[1721601354652,1.21885444,68127.0,68126.0,0.29357]
[1721601356997,1.27090442,68127.0,68126.0,0.29357]
[1721601357348,1.34620442,68127.0,68126.0,0.29357]
[1721601357738,2.05883685,68127.0,68126.0,0.29357]
[1721601357910,2.00883685,68127.0,68126.0,0.29357]
[1721601358092,2.01490552,68127.0,68126.0,0.29357]
[1721601358279,1.90494491,68127.0,68126.0,0.29357]
[1721601358491,1.88977342,68127.0,68126.0,0.29357]
[1721601358662,1.88377342,68127.0,68126.0,0.29357]
[1721601358863,1.59720442,68127.0,68126.0,0.29357]
[1721601359067,1.34890442,68127.0,68126.0,0.29357]
[1721601359491,0.75476642,68127.0,68126.0,0.29357]
[1721601359695,0.75476642,68127.0,68126.0,0.37387]
[1721601359696,1.05833542,68127.0,68126.0,0.37387]
[1721601360096,1.06333542,68127.0,68126.0,0.37387]
[1721601360340,0.76476642,68127.0,68126.0,0.37387]
[1721601360814,0.79976642,68127.0,68126.0,0.37387]
[1721601361097,1.08133542,68127.0,68126.0,0.37387]
[1721601361350,0.78776642,68127.0,68126.0,0.37387]
[1721601361839,0.77376642,68127.0,68126.0,0.37387]
[1721601362078,0.64271644,68127.0,68126.0,0.37387]
[1721601362503,0.04234153,68127.0,68126.0,0.42387]
[1721601362701,0.18912553,68127.0,68126.0,0.42387]
[1721601362978,0.49169453,68127.0,68126.0,0.42387]
[1721601363208,0.77726353,68127.0,68126.0,0.37387]
[1721601363414,0.92228344,68127.0,68126.0,0.29357]
[1721601363615,0.98232592,68127.0,68126.0,0.29357]
[1721601363819,0.93028344,68127.0,68126.0,0.29357]
[1721601364239,0.93628344,68127.0,68126.0,0.29357]
[1721601364839,0.98833012,68127.0,68126.0,0.29357]
[1721601365081,0.98833012,68127.0,68126.0,0.294494]
[1721601365287,1.28189912,68127.0,68126.0,0.294494]
[1721601367443,1.3256408,68127.0,68126.0,0.294494]
[1721601367848,1.3256826,68127.0,68126.0,0.294494]
[1721601368449,1.28189912,68127.0,68126.0,0.294494]
[1721601368857,1.34757435,68127.0,68126.0,0.294494]
[1721601369256,1.28189912,68127.0,68126.0,0.294494]
[1721601369526,1.34757435,68127.0,68126.0,0.294494]
[1721601370514,1.28189912,68127.0,68126.0,0.294494]
[1721601370724,1.36946609,68127.0,68126.0,0.294494]
[1721601371108,1.36951658,68127.0,68126.0,0.294494]
[1721601371485,1.36951658,68127.0,68126.0,0.26197212]
[1721601371486,2.03396139,68127.0,68126.0,0.26197212]
[1721601371733,1.92443956,68127.0,68126.0,0.26197212]
[1721601371993,1.46951669,68127.0,68126.0,0.26197212]
[1721601372201,1.38189912,68127.0,68126.0,0.26197212]
[1721601372401,1.36089912,68127.0,68126.0,0.26197212]
[1721601372602,1.45751885,68127.0,68126.0,0.26197212]
[1721601372803,1.46451885,68127.0,68126.0,0.26197212]
[1721601373415,1.37689912,68127.0,68126.0,0.26197212]
[1721601373643,1.38374597,68127.0,68126.0,0.26197212]
[1721601374113,1.49041953,68127.0,68126.0,0.26197212]
[1721601374318,1.3809476,68127.0,68126.0,0.26197212]
[1721601374448,1.3929476,68127.0,68126.0,0.26197212]
[1721601374658,1.39294716,68127.0,68126.0,0.26197212]
[1721601375117,1.38094716,68127.0,68126.0,0.26197212]
[1721601375511,1.39094716,68127.0,68126.0,0.26197212]
[1721601375922,1.40094716,68127.0,68126.0,0.26197212]
[1721601376080,1.37089912,68127.0,68126.0,0.26197212]
[1721601376280,1.38477874,68127.0,68126.0,0.26197212]
[1721601376482,1.37477874,68127.0,68126.0,0.26197212]
[1721601376707,1.38377874,68127.0,68126.0,0.26197212]
[1721601376861,1.37477874,68127.0,68126.0,0.26197212]
[1721601377068,1.38677874,68127.0,68126.0,0.26197212]
[1721601377291,1.3865842,68127.0,68126.0,0.26197212]
[1721601377488,1.3745842,68127.0,68126.0,0.26197212]
[1721601377694,1.3835842,68127.0,68126.0,0.26197212]
[1721601377953,1.3945842,68127.0,68126.0,0.26197212]
[1721601380430,1.39477188,68127.0,68126.0,0.32347212]
[1721601381058,1.39477188,68127.0,68126.0,0.26197212]
[1721601381282,1.54263923,68127.0,68126.0,0.26197212]
[1721601381477,1.68960188,68127.0,68126.0,0.26197212]
[1721601383540,1.6896564,68127.0,68126.0,0.26197212]
[1721601384154,1.6786564,68127.0,68126.0,0.26197212]
[1721601384573,1.6926564,68127.0,68126.0,0.26197212]
[1721601385232,1.54569375,68127.0,68126.0,0.26197212]
[1721601385419,1.53669375,68127.0,68126.0,0.26197212]
[1721601385922,1.54969375,68127.0,68126.0,0.26197212]
[1721601386142,1.54979757,68127.0,68126.0,0.26197212]
[1721601386700,1.54373166,68127.0,68126.0,0.26197212]
[1721601386900,1.40799751,68127.0,68126.0,0.26197212]
[1721601387247,1.11442854,68127.0,68126.0,0.26197212]
[1721601387657,1.10836266,68127.0,68126.0,0.26197212]
[1721601388251,1.09436266,68127.0,68126.0,0.26197212]
[1721601388487,1.09842892,68127.0,68126.0,0.26197212]
[1721601388896,1.09542892,68127.0,68126.0,0.26197212]
[1721601389358,1.10442892,68127.0,68126.0,0.26197212]
[1721601389580,1.11142892,68127.0,68126.0,0.26197212]
[1721601389780,1.10511898,68127.0,68126.0,0.26197212]
[1721601389996,1.11118524,68127.0,68126.0,0.26197212]
[1721601393048,1.11127272,68127.0,68126.0,0.26197212]
[1721601393181,0.52413472,68127.0,68126.0,0.26197212]
[1721601393383,0.1750538,68127.0,68126.0,0.37387212]
[1721601393599,0.1750538,68127.0,68126.0,0.45437212]
[1721601393785,0.1531368,68127.0,68126.0,0.45437212]
[1721601393986,0.03534153,68127.0,68126.0,0.45437212]
[1721601394875,0.02634153,68127.0,68126.0,0.45437212]
[1721601395274,0.03534153,68127.0,68126.0,0.45437212]
[1721601395764,0.015,68127.0,68126.0,0.60115812]
[1721601396208,0.015,68127.0,68126.0,1.01662418]
[1721601396209,0.016,68127.0,68126.0,1.01662418]
[1721601396399,0.016,68127.0,68126.0,1.16464409]
[1721601396672,0.01116031,68132.0,68127.0,0.1388]
[1721601396903,0.01116031,68132.0,68131.0,0.26228942]
[1721601397033,0.147602,68138.0,68135.0,0.05]
[1721601397034,0.00084,68138.0,68135.0,0.05]
[1721601397243,0.29378291,68137.0,68136.0,0.328844]
[1721601397452,0.58730891,68137.0,68136.0,0.32605]
[1721601397651,0.61030891,68137.0,68136.0,0.32605]
[1721601397852,0.90383491,68137.0,68136.0,0.32605]
[1721601398682,0.90983491,68137.0,68136.0,0.32605]
[1721601399440,0.91283491,68137.0,68136.0,0.32605]
[1721601403125,0.61930891,68137.0,68136.0,0.40505]
[1721601404847,0.91283491,68137.0,68136.0,0.40505]
[1721601405095,0.61930891,68137.0,68136.0,0.32605]
[1721601405388,1.20636091,68137.0,68136.0,0.32605]
[1721601405657,1.34806091,68137.0,68136.0,0.32605]
[1721601405937,1.7818137,68137.0,68136.0,0.21254417]
[1721601406173,1.5882877,68137.0,68136.0,0.21254417]
[1721601406414,2.02877635,68137.0,68136.0,0.21254417]
[1721601406665,1.9318137,68137.0,68136.0,0.21254417]
[1721601406921,1.89697879,68137.0,68136.0,0.21254417]
[1721601407153,1.98450629,68137.0,68136.0,0.21254417]
[1721601407635,1.97850629,68137.0,68136.0,0.21254417]
[1721601407913,1.98950629,68137.0,68136.0,0.21254417]
[1721601408416,1.98950718,68137.0,68136.0,0.21254417]
[1721601408666,2.00350718,68137.0,68136.0,0.21254417]
[1721601408913,2.05350718,68137.0,68136.0,0.12196439]
[1721601409162,1.96597968,68137.0,68136.0,0.12196439]
[1721601409397,1.96597968,68137.0,68136.0,0.09606439]
[1721601409635,2.05179147,68137.0,68136.0,0.09606439]
[1721601411321,2.05179147,68137.0,68136.0,0.02365439]
[1721601411595,2.05178939,68137.0,68136.0,0.02365439]
[1721601412114,2.05178889,68137.0,68136.0,0.02365439]
[1721601414501,2.05178889,68137.0,68136.0,0.02290439]
[1721601414736,2.05178879,68137.0,68136.0,0.02290439]
[1721601415244,2.34531479,68137.0,68136.0,0.02290439]
[1721601415973,2.34531479,68137.0,68136.0,0.01055999]
[1721601416688,0.234995,68122.0,68121.0,0.002794]
[1721601416941,1.08795308,68122.0,68121.0,0.002794]
[1721601417176,1.81215997,68122.0,68121.0,0.29359]
[1721601417961,1.88914834,68122.0,68121.0,0.29359]
[1721601418718,2.11151099,68122.0,68121.0,0.29359]
[1721601418951,2.04592548,68122.0,68121.0,0.29359]
[1721601419185,1.96453822,68122.0,68121.0,0.29359]
[1721601419693,2.30812822,68122.0,68121.0,0.29359]
[1721601419944,2.30812822,68122.0,68091.0,0.004]
[1721601419945,0.235034,68104.0,68091.0,0.004]
[1721601420218,0.235034,68104.0,68096.0,0.07348942]
[1721601420219,1.4705577,68104.0,68096.0,0.07348942]
[1721601420472,0.023,68104.0,68103.0,0.48787]
[1721601420714,0.58364948,68116.0,68112.0,0.1934]
[1721601420715,0.440443,68113.0,68112.0,0.1934]
[1721601420946,0.440443,68113.0,68112.0,0.48703]
[1721601421849,0.734072,68113.0,68112.0,0.48703]
[1721601422083,0.463443,68113.0,68112.0,0.48703]
[1721601422313,0.466443,68113.0,68112.0,0.48703]
[1721601422559,0.760072,68113.0,68112.0,0.48703]
[1721601422809,1.20072091,68113.0,68112.0,0.29363]
[1721601423058,1.20072091,68113.0,68112.0,0.28054701]
[1721601423302,1.34768356,68113.0,68112.0,0.19508872]
[1721601423545,1.44593731,68113.0,68112.0,0.19508872]
[1721601424040,1.73456631,68113.0,68112.0,0.19508872]
[1721601424291,1.73156631,68113.0,68112.0,0.19508872]
[1721601424511,1.70754991,68113.0,68112.0,0.19508872]
[1721601424883,1.69354991,68113.0,68112.0,0.19508872]
[1721601425125,1.72154991,68113.0,68112.0,0.19508872]
[1721601425365,1.70754991,68113.0,68112.0,0.19508872]
[1721601425784,1.72154991,68113.0,68112.0,0.19508872]
[1721601426191,1.73262875,68113.0,68112.0,0.19508872]
[1721601426978,1.78262875,68113.0,68112.0,0.19508872]
[1721601427184,1.98161929,68113.0,68112.0,0.19508872]
[1721601427902,1.99677734,68113.0,68112.0,0.19508872]
[1721601428137,1.99677734,68113.0,68112.0,0.07014846]
[1721601428138,2.12817734,68113.0,68112.0,0.07014846]
[1721601428371,2.11417734,68113.0,68112.0,0.07014846]
[1721601428870,1.96721469,68113.0,68112.0,0.07014846]
[1721601429095,1.95321469,68113.0,68112.0,0.07014846]
[1721601429321,1.90811986,68113.0,68112.0,0.07014846]
[1721601429553,1.90205664,68113.0,68112.0,0.07014846]
[1721601429804,1.75665664,68113.0,68112.0,0.07014846]
[1721601430052,1.70462875,68113.0,68112.0,0.07107246]
[1721601430321,1.71845831,68113.0,68112.0,0.07107246]
[1721601430554,1.8133914,68113.0,68112.0,0.07107246]
[1721601430793,1.7336143,68113.0,68112.0,0.07107246]
[1721601431024,1.8887143,68113.0,68112.0,0.02436246]
[1721601431532,1.9629143,68113.0,68112.0,0.02436246]
[1721601431794,1.96291386,68113.0,68112.0,0.02436246]
[1721601431998,1.97691386,68113.0,68112.0,0.02436246]
[1721601432241,2.12387651,68113.0,68112.0,0.02436246]
[1721601432485,2.16140257,68113.0,68112.0,0.02436246]
[1721601432773,2.16746545,68113.0,68112.0,0.02436246]
[1721601432989,1.96175647,68113.0,68112.0,0.02436246]
[1721601433198,2.02050279,68113.0,68112.0,0.02436246]
[1721601433445,1.97691367,68113.0,68112.0,0.02436246]
[1721601435198,2.27054267,68113.0,68112.0,0.02436246]
[1721601435403,2.02287849,68113.0,68112.0,0.02436246]
[1721601435616,2.01681561,68113.0,68112.0,0.02436246]
[1721601435822,2.02287849,68113.0,68112.0,0.02436246]
[1721601436230,1.97691367,68113.0,68112.0,0.02436246]
[1721601436439,1.97691367,68113.0,68112.0,0.01510802]
[1721601438303,1.371488,68105.0,68104.0,0.07348942]
[1721601438514,1.83943563,68105.0,68104.0,0.07348942]
[1721601438726,1.98639828,68105.0,68104.0,0.36715942]
[1721601438931,2.00155425,68105.0,68104.0,0.36715942]
[1721601439609,2.00646067,68105.0,68104.0,0.36715942]
[1721601440041,1.80949802,68105.0,68104.0,0.36715942]
[1721601440304,1.82349802,68105.0,68104.0,0.36715942]
[1721601440496,1.82349802,68105.0,68104.0,0.43145942]
[1721601440497,1.37787163,68105.0,68104.0,0.43145942]
[1721601440713,1.32584391,68105.0,68104.0,0.43145942]
[1721601441147,1.00917991,68105.0,68104.0,0.43145942]
[1721601441364,0.71551591,68105.0,68104.0,0.43145942]
[1721601442037,0.42185191,68105.0,68104.0,0.43145942]
[1721601442257,0.71551591,68105.0,68104.0,0.43145942]
[1721601442468,0.99517991,68105.0,68104.0,0.43145942]
[1721601442679,1.03217991,68105.0,68104.0,0.43145942]
[1721601442909,1.31184391,68105.0,68104.0,0.29367]
[1721601443363,1.32584391,68105.0,68104.0,0.29367]
[1721601443588,1.31184391,68105.0,68104.0,0.29367]
[1721601443795,1.80436634,68105.0,68104.0,0.29367]
[1721601444023,1.80336634,68105.0,68104.0,0.29367]
[1721601444242,1.79836634,68105.0,68104.0,0.29367]
[1721601444450,1.81136634,68105.0,68104.0,0.29367]
[1721601444649,1.65654195,68105.0,68104.0,0.29367]
[1721601445026,1.67054195,68105.0,68104.0,0.29367]
[1721601445472,1.67660455,68105.0,68104.0,0.29367]
[1721601445919,1.6766045,68105.0,68104.0,0.29367]
[1721601446574,1.67054195,68105.0,68104.0,0.29367]
[1721601446792,1.39087795,68105.0,68104.0,0.43717]
[1721601447226,1.39087795,68105.0,68104.0,0.29367]
[1721601447431,1.39694059,68105.0,68104.0,0.29367]
[1721601447638,1.39087795,68105.0,68104.0,0.29367]
[1721601447861,1.39694059,68105.0,68104.0,0.29367]
[1721601448059,1.39087795,68105.0,68104.0,0.29367]
[1721601448489,1.39694063,68105.0,68104.0,0.29367]
[1721601448689,1.39087795,68105.0,68104.0,0.29367]
[1721601449118,0.72851591,68105.0,68104.0,0.43717]
[1721601449587,1.02217991,68105.0,68104.0,0.43717]
[1721601450079,0.99517991,68105.0,68104.0,0.43717]
[1721601450297,1.00417991,68105.0,68104.0,0.43717]
[1721601450503,1.01217991,68105.0,68104.0,0.43717]
[1721601450710,1.0662253,68105.0,68104.0,0.43717]
[1721601450920,1.3598893,68105.0,68104.0,0.43717]
[1721601451139,1.0612253,68105.0,68104.0,0.43717]
[1721601451337,1.00417991,68105.0,68104.0,0.43717]
[1721601451544,1.0652336,68105.0,68104.0,0.43717]
[1721601451756,1.0712336,68105.0,68104.0,0.43717]
[1721601451969,1.0622336,68105.0,68104.0,0.43717]
[1721601452394,1.0702336,68105.0,68104.0,0.43717]
[1721601453021,1.3578976,68105.0,68104.0,0.43717]
[1721601453218,1.0692336,68105.0,68104.0,0.43717]
[1721601453392,1.0642336,68105.0,68104.0,0.43717]
[1721601453635,1.0562336,68105.0,68104.0,0.43717]
[1721601453867,1.0622336,68105.0,68104.0,0.43717]
[1721601454071,1.0712336,68105.0,68104.0,0.43717]
[1721601454507,1.0672336,68105.0,68104.0,0.43717]
[1721601454734,1.3628976,68105.0,68104.0,0.43717]
[1721601454949,1.0692336,68105.0,68104.0,0.43717]
[1721601455184,1.3548976,68105.0,68104.0,0.43717]
[1721601455413,1.0612336,68105.0,68104.0,0.43717]
[1721601455659,1.6485616,68105.0,68104.0,0.29367]
[1721601455886,1.66371914,68105.0,68104.0,0.29367]
[1721601456097,1.67471914,68105.0,68104.0,0.29367]
[1721601456309,1.68071914,68105.0,68104.0,0.29367]
[1721601456516,1.67571914,68105.0,68104.0,0.29367]
[1721601456721,1.68071914,68105.0,68104.0,0.29367]
[1721601457382,1.66062447,68105.0,68104.0,0.29367]
[1721601457590,1.85568143,68105.0,68104.0,0.29367]
[1721601457802,1.81368102,68105.0,68104.0,0.29367]
[1721601458000,1.81968102,68105.0,68104.0,0.29367]
[1721601458307,1.81168102,68105.0,68104.0,0.29367]
[1721601458504,1.81168102,68105.0,68104.0,0.2964866]
[1721601458707,1.82368102,68105.0,68104.0,0.2964866]
[1721601459116,1.80568102,68105.0,68104.0,0.2964866]
[1721601459316,1.81968102,68105.0,68104.0,0.2964866]
[1721601459521,1.91335801,68105.0,68104.0,0.2964866]
[1721601459958,1.86335801,68105.0,68104.0,0.2964866]
[1721601460369,1.81452425,68105.0,68104.0,0.2964866]
[1721601460536,1.815681,68105.0,68104.0,0.2964866]
[1721601460952,1.819681,68105.0,68104.0,0.2964866]
[1721601461169,1.869681,68105.0,68104.0,0.2964866]
[1721601461385,1.855681,68105.0,68104.0,0.2974106]
[1721601461826,1.869681,68105.0,68104.0,0.2974106]
[1721601462408,1.68671835,68105.0,68104.0,0.2974106]
[1721601462613,1.77418511,68105.0,68104.0,0.2974106]
[1721601463089,1.68671835,68105.0,68104.0,0.2974106]
[1721601463301,1.39305435,68105.0,68104.0,0.2974106]
[1721601463509,1.3548976,68105.0,68104.0,0.37090002]
[1721601463909,1.37005538,68105.0,68104.0,0.37090002]
[1721601464126,1.4137962,68105.0,68104.0,0.37090002]
[1721601464330,1.35605538,68105.0,68104.0,0.37090002]
[1721601464543,1.37005538,68105.0,68104.0,0.37090002]
[1721601465210,1.37905538,68105.0,68104.0,0.37090002]
[1721601465425,1.37505538,68105.0,68104.0,0.37090002]
[1721601465640,1.44066661,68105.0,68104.0,0.37090002]
[1721601466540,1.45168595,68105.0,68104.0,0.37090002]
[1721601466727,1.37605538,68105.0,68104.0,0.37090002]
[1721601466962,1.36505538,68105.0,68104.0,0.37090002]
[1721601467180,1.38805538,68105.0,68104.0,0.37090002]
[1721601467617,1.37405538,68105.0,68104.0,0.37090002]
[1721601467834,1.46156243,68105.0,68104.0,0.37090002]
[1721601468043,1.45070994,68105.0,68104.0,0.37090002]
[1721601468478,1.47256243,68105.0,68104.0,0.37090002]
[1721601469149,1.46356243,68105.0,68104.0,0.37090002]
[1721601469582,1.47156243,68105.0,68104.0,0.37090002]
[1721601469829,1.37781557,68105.0,68104.0,0.37090002]
[1721601470039,1.46040403,68105.0,68104.0,0.37090002]
[1721601470255,1.45433613,68105.0,68104.0,0.37090002]
[1721601470468,1.47040241,68105.0,68104.0,0.37090002]
[1721601470857,1.38287158,68105.0,68104.0,0.37090002]
[1721601471348,1.47040245,68105.0,68104.0,0.37090002]
[1721601471555,1.38287162,68105.0,68104.0,0.37090002]
[1721601471970,1.3677209,68105.0,68104.0,0.37090002]
[1721601472179,1.37378117,68105.0,68104.0,0.37090002]
[1721601472396,1.38287144,68105.0,68104.0,0.37090002]
[1721601472824,1.37378093,68105.0,68104.0,0.45050002]
[1721601473447,1.3677209,68105.0,68104.0,0.45050002]
[1721601474530,1.41148177,68105.0,68104.0,0.45050002]
[1721601474951,1.3677209,68105.0,68104.0,0.45050002]
[1721601475798,1.11781748,68105.0,68104.0,0.45050002]
[1721601476009,1.0740569,68105.0,68104.0,0.45050002]
[1721601476252,1.13969978,68105.0,68104.0,0.45050002]
[1721601476662,1.1396967,68105.0,68104.0,0.45050002]
[1721601477759,1.0740569,68105.0,68104.0,0.45050002]
[1721601478598,1.3677209,68105.0,68104.0,0.45050002]
[1721601478850,1.4333607,68105.0,68104.0,0.45050002]
[1721601479277,1.4333407,68105.0,68104.0,0.45050002]
[1721601479496,1.4333407,68105.0,68104.0,0.37090002]
[1721601479922,1.43333408,68105.0,68104.0,0.37090002]
[1721601481436,1.3828621,68105.0,68104.0,0.37090002]
[1721601481650,1.47034243,68105.0,68104.0,0.37090002]
[1721601482086,1.47034153,68105.0,68104.0,0.37090002]
[1721601482300,1.38286205,68105.0,68104.0,0.37090002]
[1721601483162,1.43333161,68105.0,68104.0,0.37090002]
[1721601483377,1.38286195,68105.0,68104.0,0.37090002]
[1721601484692,1.38286033,68105.0,68104.0,0.37090002]
[1721601484901,1.38286037,68105.0,68104.0,0.37090002]
[1721601487095,1.47033181,68105.0,68104.0,0.37090002]
[1721601487849,1.38284946,68105.0,68104.0,0.37090002]
[1721601489091,0.64850155,68105.0,68104.0,0.42090002]
[1721601489341,0.07005369,68105.0,68104.0,0.56310002]
[1721601489556,0.018,68105.0,68104.0,0.56310002]
[1721601490016,0.018,68105.0,68104.0,0.83187185]
[1721601490236,0.008,68105.0,68104.0,1.12553985]
[1721601490483,0.00084,68112.0,68111.0,0.1872]
[1721601490700,0.00084,68112.0,68111.0,0.48084]
[1721601492715,0.00184,68112.0,68111.0,0.48284]
[1721601493619,0.00284,68112.0,68111.0,0.48484]
[1721601495417,0.00084,68112.0,68111.0,0.48084]
[1721601495644,0.00084,68112.0,68111.0,0.48184]
[1721601496301,0.441291,68112.0,68111.0,0.48084]
[1721601496520,0.734925,68112.0,68111.0,0.34364]
[1721601496734,0.464291,68112.0,68111.0,0.34464]
[1721601498013,0.757925,68112.0,68111.0,0.34464]
[1721601498212,0.758925,68112.0,68111.0,0.29664]
[1721601498415,0.757925,68112.0,68111.0,0.29464]
[1721601498829,0.758925,68112.0,68111.0,0.29664]
[1721601499187,0.758925,68112.0,68111.0,0.29564]
[1721601499389,0.758925,68112.0,68111.0,0.29364]
[1721601499599,0.763925,68112.0,68111.0,0.29364]
[1721601499801,1.2184758,68112.0,68111.0,0.29364]
[1721601500869,1.2124758,68112.0,68111.0,0.29364]
[1721601501076,0.76882189,68112.0,68111.0,0.40824]
[1721601501282,0.77482189,68112.0,68111.0,0.40824]
[1721601501494,0.77782189,68112.0,68111.0,0.40824]
[1721601501701,0.77182189,68112.0,68111.0,0.40824]
[1721601501932,0.77482189,68112.0,68111.0,0.40824]
[1721601502129,0.78082189,68112.0,68111.0,0.40824]
[1721601502659,0.78082189,68112.0,68111.0,0.29364]
[1721601503311,0.78082189,68112.0,68111.0,0.34364]
[1721601503536,0.78082189,68112.0,68111.0,0.29364]
[1721601503943,1.3639758,68112.0,68111.0,0.29364]
[1721601504145,1.3002758,68112.0,68111.0,0.29364]
[1721601504787,1.2214758,68112.0,68111.0,0.29364]
[1721601505001,0.9278418,68112.0,68111.0,0.29364]
[1721601506939,0.78082189,68112.0,68111.0,0.34364]
[1721601507773,0.48718789,68112.0,68111.0,0.34364]
[1721601507985,0.03584,68112.0,68111.0,0.40754]
[1721601508231,0.182657,68112.0,68111.0,0.40754]
[1721601509112,0.476291,68112.0,68111.0,0.40754]
[1721601509320,0.769925,68112.0,68111.0,0.40754]
[1721601510860,0.769925,68112.0,68111.0,0.35754]
[1721601511295,0.476291,68112.0,68111.0,0.40754]
[1721601513027,0.476291,68112.0,68111.0,0.35754]
[1721601513235,0.769925,68112.0,68111.0,0.35754]
[1721601513672,0.91694491,68112.0,68111.0,0.29364]
[1721601517715,1.35287891,68112.0,68111.0,0.29364]
[1721601517925,1.51097602,68112.0,68111.0,0.29364]
[1721601518137,1.52006964,68112.0,68111.0,0.29364]
[1721601519011,1.5200734,68112.0,68111.0,0.29364]
[1721601519439,1.52007356,68112.0,68111.0,0.29364]
[1721601520532,1.51097754,68112.0,68111.0,0.29364]
[1721601522048,1.51097947,68112.0,68111.0,0.29364]
[1721601522336,1.51097986,68112.0,68111.0,0.29364]
[1721601523736,1.52008033,68112.0,68111.0,0.29364]
[1721601524764,1.51408033,68112.0,68111.0,0.29364]
[1721601525217,1.52408128,68112.0,68111.0,0.29364]
[1721601525456,1.55782757,68112.0,68111.0,0.29364]
[1721601525701,1.51408128,68112.0,68111.0,0.29364]
[1721601525932,1.52808128,68112.0,68111.0,0.29364]
[1721601526406,1.51408128,68112.0,68111.0,0.29364]
[1721601526870,1.50808128,68112.0,68111.0,0.29364]
[1721601527495,1.51198063,68112.0,68111.0,0.29364]
[1721601527725,1.53508344,68112.0,68111.0,0.29364]
[1721601527932,1.52598063,68112.0,68111.0,0.29364]
[1721601528140,1.37068063,68112.0,68111.0,0.35934]
[1721601528337,1.35061353,68112.0,68111.0,0.29364]
[1721601528552,1.37661353,68112.0,68111.0,0.29364]
[1721601528788,1.36461353,68112.0,68111.0,0.29364]
[1721601529018,1.35061353,68112.0,68111.0,0.29364]
[1721601529492,1.36461353,68112.0,68111.0,0.29364]
[1721601530411,1.31461353,68112.0,68111.0,0.29364]
[1721601530631,1.32561353,68112.0,68111.0,0.29364]
[1721601531550,1.33168263,68112.0,68111.0,0.29364]
[1721601531756,1.39778269,68112.0,68111.0,0.29364]
[1721601531960,1.48058267,68112.0,68111.0,0.29364]
[1721601532601,1.50358267,68112.0,68111.0,0.29364]
[1721601533057,1.55646443,68112.0,68111.0,0.29364]
[1721601533503,1.55646266,68112.0,68111.0,0.29364]
[1721601534368,1.51268464,68112.0,68111.0,0.29364]
[1721601534572,1.51268261,68112.0,68111.0,0.29364]
[1721601535417,1.54735961,68112.0,68111.0,0.29364]
[1721601535618,1.55646136,68112.0,68111.0,0.29364]
[1721601535821,1.54735961,68112.0,68111.0,0.29364]
[1721601536073,1.55646163,68112.0,68111.0,0.29364]
[1721601537015,1.51268307,68112.0,68111.0,0.29364]
[1721601537217,1.57834932,68112.0,68111.0,0.29364]
[1721601537773,1.57835409,68112.0,68111.0,0.29364]
[1721601538590,1.56435409,68112.0,68111.0,0.29364]
[1721601539008,1.51268331,68112.0,68111.0,0.29364]
[1721601539436,1.95658809,68112.0,68111.0,0.29364]